bitfinex/quotes_BTCUSD_20250813
["timestamp","ask_amount","ask_price","bid_price","bid_amount"]
[1755070631043,4.74661457,119200.0,119190.0,1.12290647]
[1755070632095,4.77161457,119200.0,119190.0,1.12290647]
[1755070632520,4.77161457,119200.0,119190.0,1.01838647]
[1755070632949,4.74661457,119200.0,119190.0,1.01838647]
[1755070633182,4.77161457,119200.0,119190.0,0.81734647]
[1755070634435,5.47228662,119200.0,119190.0,0.81734647]
[1755070635581,5.47228662,119200.0,119190.0,1.12298647]
[1755070636857,5.44728662,119200.0,119190.0,1.12298647]
[1755070636998,5.47228662,119200.0,119190.0,1.12298647]
[1755070638219,4.07094252,119200.0,119190.0,1.12298647]
[1755070638436,5.47228662,119200.0,119190.0,1.12298647]
[1755070638645,5.44728662,119200.0,119190.0,1.12298647]
[1755070639034,5.47228662,119200.0,119190.0,1.12298647]
[1755070640775,5.44728662,119200.0,119190.0,1.12298647]
[1755070640959,5.47228662,119200.0,119190.0,1.12298647]
[1755070644345,5.47433662,119200.0,119190.0,1.12298647]
[1755070652444,5.45029457,119200.0,119190.0,1.12298647]
[1755070652701,4.77161457,119200.0,119190.0,1.12298647]
[1755070652960,4.07094252,119200.0,119190.0,1.12298647]
[1755070653182,5.44728662,119200.0,119190.0,1.12298647]
[1755070653400,5.47228662,119200.0,119190.0,1.12298647]
[1755070653621,5.47426662,119200.0,119190.0,1.12298647]
[1755070653908,5.47426662,119200.0,119190.0,1.11990647]
[1755070655107,4.07292252,119200.0,119190.0,1.11990647]
[1755070655324,5.47426662,119200.0,119190.0,1.11990647]
[1755070655769,4.07292252,119200.0,119190.0,1.11990647]
[1755070655987,5.47735662,119200.0,119190.0,0.99012647]
[1755070656203,5.47735662,119200.0,119190.0,1.11768647]
[1755070659694,5.59403105,119200.0,119190.0,0.71768647]
[1755070660118,5.51154662,119200.0,119190.0,0.71084942]
[1755070663816,5.52722647,119200.0,119190.0,0.71084942]
[1755070669249,5.52722132,119200.0,119190.0,0.71084942]
[1755070671042,5.50177721,119200.0,119190.0,0.71084942]
[1755070671274,5.58105593,119200.0,119190.0,0.71084942]
[1755070671685,5.50177721,119200.0,119190.0,0.71084942]
[1755070672262,5.46758721,119200.0,119190.0,0.71084942]
[1755070672484,5.46449721,119200.0,119190.0,0.71582942]
[1755070672970,5.44882251,119200.0,119190.0,0.71582942]
[1755070673152,5.44882251,119200.0,119190.0,0.91582942]
[1755070673443,5.47213586,119200.0,119190.0,0.91582942]
[1755070674840,4.84970722,119200.0,119190.0,0.91582942]
[1755070675786,4.82566517,119200.0,119190.0,0.91582942]
[1755070676234,4.84970722,119200.0,119190.0,0.91582942]
[1755070678018,4.82566517,119200.0,119190.0,0.91582942]
[1755070678469,4.84970722,119200.0,119190.0,0.91582942]
[1755070679088,4.85168722,119200.0,119190.0,0.91582942]
[1755070679444,4.85168722,119200.0,119190.0,0.91288942]
[1755070679685,5.63060268,119200.0,119190.0,0.91288942]
[1755070679921,5.63375268,119200.0,119190.0,0.91084942]
[1755070682880,5.63375268,119200.0,119190.0,0.91283942]
[1755070684428,4.07592176,119200.0,119190.0,0.91283942]
[1755070684646,4.84970722,119200.0,119190.0,1.11602942]
[1755070684886,4.84970722,119200.0,119190.0,1.01146942]
[1755070685560,4.84970722,119200.0,119190.0,1.11602942]
[1755070685780,4.82470722,119200.0,119190.0,1.11602942]
[1755070686001,4.84970722,119200.0,119190.0,1.21602942]
[1755070686843,4.84770722,119200.0,119190.0,1.21502942]
[1755070687048,4.84870722,119200.0,119190.0,1.21502942]
[1755070687271,4.84970722,119200.0,119190.0,1.21502942]
[1755070687475,4.82566517,119200.0,119190.0,1.11046942]
[1755070689049,4.80066517,119200.0,119190.0,1.11046942]
[1755070689292,4.82566517,119200.0,119190.0,1.11046942]
[1755070690454,4.80066517,119200.0,119190.0,0.90938942]
[1755070690904,4.02174971,119200.0,119190.0,0.90938942]
[1755070691159,4.77537182,119200.0,119190.0,0.90938942]
[1755070691786,3.99645636,119200.0,119190.0,0.90938942]
[1755070691992,4.77537182,119200.0,119190.0,0.90938942]
[1755070692204,3.99645636,119200.0,119190.0,0.90938942]
[1755070692470,4.77537182,119200.0,119190.0,0.90938942]
[1755070692890,4.79991888,119200.0,119190.0,0.90938942]
[1755070694480,4.02100342,119200.0,119190.0,0.90938942]
[1755070694901,4.74683589,119200.0,119190.0,0.90938942]
[1755070695603,4.72083589,119200.0,119190.0,0.90938942]
[1755070695816,4.72083589,119200.0,119190.0,1.21498942]
[1755070696266,4.71983589,119200.0,119190.0,1.21498942]
[1755070698036,4.71983589,119200.0,119190.0,1.11042942]
[1755070698663,4.71983589,119200.0,119190.0,0.90938942]
[1755070699084,4.71983589,119200.0,119190.0,0.90420942]
[1755070699085,5.42263836,119200.0,119190.0,0.90420942]
[1755070699295,5.42578836,119200.0,119190.0,0.90420942]
[1755070702447,4.72495589,119200.0,119190.0,0.90420942]
[1755070702848,4.02412342,119200.0,119190.0,0.90420942]
[1755070703060,5.42578836,119200.0,119190.0,0.90420942]
[1755070704193,4.02412342,119200.0,119190.0,0.90420942]
[1755070704342,4.72495589,119200.0,119190.0,0.90420942]
[1755070705577,4.72495589,119200.0,119190.0,1.00872942]
[1755070705804,4.72495589,119200.0,119190.0,1.20976942]
[1755070712936,4.72495589,119200.0,119190.0,1.10524942]
[1755070713134,4.72495589,119200.0,119190.0,0.90420942]
[1755070715559,4.72495589,119200.0,119190.0,1.20976942]
[1755070716194,4.02412342,119200.0,119190.0,1.20976942]
[1755070716417,4.72495589,119200.0,119190.0,1.20976942]
[1755070718829,4.72495589,119200.0,119190.0,1.10524942]
[1755070722188,4.72495589,119200.0,119190.0,1.10739942]
[1755070722396,4.72180589,119200.0,119190.0,1.10739942]
[1755070722844,4.72180589,119200.0,119190.0,0.90635942]
[1755070724822,4.02097342,119200.0,119190.0,0.90635942]
[1755070725247,4.71983589,119200.0,119190.0,0.90960942]
[1755070725447,4.01900342,119200.0,119190.0,0.90960942]
[1755070725751,4.71983589,119200.0,119190.0,1.21516942]
[1755070729273,4.01900342,119200.0,119190.0,1.21516942]
[1755070729474,4.71983589,119200.0,119190.0,1.21516942]
[1755070730792,4.01900342,119200.0,119190.0,1.21516942]
[1755070731018,4.71983589,119200.0,119190.0,1.21516942]
[1755070731433,4.71983589,119200.0,119190.0,1.23016942]
[1755070731710,4.01900342,119200.0,119190.0,1.23016942]
[1755070731926,4.71983589,119200.0,119190.0,0.92460942]
[1755070735802,4.71983589,119200.0,119190.0,1.23016942]
[1755070736818,4.01900342,119200.0,119190.0,1.23016942]
[1755070737133,4.71983589,119200.0,119190.0,1.23016942]
[1755070739776,4.72183589,119200.0,119190.0,1.12564942]
[1755070740197,4.72183589,119200.0,119190.0,1.12239942]
[1755070740571,5.42574836,119200.0,119190.0,0.79164942]
[1755070740768,5.46647493,119200.0,119190.0,0.79164942]
[1755070740958,6.20699288,119200.0,119190.0,0.92004942]
[1755070741155,6.20699288,119200.0,119190.0,0.39164942]
[1755070741365,6.20699288,119200.0,119190.0,0.52008942]
[1755070742016,6.20799288,119200.0,119190.0,0.52008942]
[1755070742218,6.287878,119200.0,119190.0,0.52008942]
[1755070742421,6.305549,119200.0,119190.0,0.52008942]
[1755070742642,5.76159547,119200.0,119190.0,0.52008942]
[1755070743086,5.78755827,119200.0,119190.0,0.52008942]
[1755070743734,5.68171035,119200.0,119190.0,0.52008942]
[1755070745662,5.68171035,119200.0,119190.0,0.82564942]
[1755070747637,5.6816941,119200.0,119190.0,0.82564942]
[1755070750645,5.66603935,119200.0,119190.0,0.82564942]
[1755070750849,5.68168841,119200.0,119190.0,0.82564942]
[1755070751277,5.68168777,119200.0,119190.0,0.82564942]
[1755070759811,5.66603935,119200.0,119190.0,0.82564942]
[1755070759976,5.68168628,119200.0,119190.0,0.82564942]
[1755070760418,5.66603935,119200.0,119190.0,0.82564942]
[1755070760718,5.68168724,119200.0,119190.0,0.82564942]
[1755070762845,5.57588872,119200.0,119190.0,0.82564942]
[1755070764300,5.54451872,119200.0,119190.0,0.82564942]
[1755070764484,5.54143872,119200.0,119190.0,0.83090942]
[1755070764843,5.54143872,119200.0,119190.0,0.82780942]
[1755070765043,5.49114872,119200.0,119190.0,0.83090942]
[1755070765249,5.48914872,119200.0,119190.0,1.03090942]
[1755070767619,5.46414872,119200.0,119190.0,1.03090942]
[1755070767842,5.48914872,119200.0,119190.0,1.03090942]
[1755070768058,5.46414872,119200.0,119190.0,1.03090942]
[1755070768267,5.49114872,119200.0,119190.0,1.03090942]
[1755070768464,5.46614872,119200.0,119190.0,1.03090942]
[1755070768704,5.64672148,119200.0,119190.0,1.03090942]
[1755070768922,5.64672148,119200.0,119190.0,1.02780942]
[1755070769146,5.6498271,119200.0,119190.0,1.02780942]
[1755070771018,5.62528004,119200.0,119190.0,1.02780942]
[1755070773362,5.62528004,119200.0,119190.0,1.02564942]
[1755070774924,5.70776447,119200.0,119190.0,1.02564942]
[1755070775801,5.65064877,119200.0,119190.0,0.69720942]
[1755070776023,5.68351877,119200.0,119190.0,0.82528942]
[1755070777539,5.6835298,119200.0,119190.0,0.82528942]
[1755070778485,5.68353039,119200.0,119190.0,0.82528942]
[1755070779110,5.68352988,119200.0,119190.0,0.82528942]
[1755070780153,5.68352988,119200.0,119190.0,1.02528942]
[1755070782673,5.68352988,119200.0,119190.0,1.02475301]
[1755070782861,5.66784526,119200.0,119190.0,1.02475301]
[1755070787603,5.71813526,119200.0,119190.0,1.02475301]
[1755070788705,5.56261846,119200.0,119190.0,1.02475301]
[1755070790989,5.53724973,119200.0,119190.0,1.02475301]
[1755070792527,5.61973416,119200.0,119190.0,1.02475301]
[1755070792962,5.53724973,119200.0,119190.0,1.02475301]
[1755070795677,5.56299286,119200.0,119190.0,1.02475301]
[1755070798204,5.53012286,119200.0,119190.0,1.02475301]
[1755070803133,5.52704286,119200.0,119190.0,1.02686301]
[1755070803344,5.52704286,119200.0,119190.0,1.02984301]
[1755070804801,4.12453154,119200.0,119190.0,1.02984301]
[1755070805026,5.45071081,119200.0,119190.0,1.02984301]
[1755070805236,5.47475286,119200.0,119190.0,1.02984301]
[1755070809960,5.47671286,119200.0,119190.0,1.02984301]
[1755070810670,5.47671286,119200.0,119190.0,0.92532301]
[1755070814238,5.47671286,119200.0,119190.0,0.92234301]
[1755070814458,5.47981286,119200.0,119190.0,0.92234301]
[1755070815162,5.47671286,119200.0,119190.0,0.92234301]
[1755070815600,5.47671286,119200.0,119190.0,1.02690301]
[1755070816012,5.47671286,119200.0,119190.0,1.02988301]
[1755070817700,5.47671286,119200.0,119190.0,1.02690301]
[1755070822744,5.36555247,119200.0,119190.0,1.02690301]
[1755070823409,5.36359247,119200.0,119190.0,1.02988301]
[1755070825333,5.36555247,119200.0,119190.0,1.02988301]
[1755070827112,5.36555247,119200.0,119190.0,1.02690301]
[1755070827345,5.36865247,119200.0,119190.0,1.02690301]
[1755070830972,5.34290934,119200.0,119190.0,1.02690301]
[1755070831170,5.34290934,119200.0,119190.0,1.02479301]
[1755070832741,5.34290934,119200.0,119160.0,0.2]
[1755070832742,0.06649107,119170.0,119160.0,0.2]
[1755070832956,1.55172564,119170.0,119160.0,0.76885275]
[1755070833382,1.56741781,119170.0,119160.0,0.76885275]
[1755070833603,1.59257381,119170.0,119160.0,0.76885275]
[1755070834063,1.59454381,119170.0,119160.0,0.76885275]
[1755070834262,1.59654381,119170.0,119160.0,0.76574275]
[1755070834661,0.97350507,119170.0,119160.0,0.76774275]
[1755070835038,0.97350507,119170.0,119160.0,0.76574275]
[1755070835525,0.97450507,119170.0,119160.0,0.76574275]
[1755070836496,0.9588129,119170.0,119160.0,0.76574275]
[1755070838697,0.95830486,119170.0,119160.0,0.76574275]
[1755070839027,0.96125486,119170.0,119160.0,0.76367275]
[1755070840196,0.96125486,119170.0,119160.0,0.76574275]
[1755070840404,0.95830486,119170.0,119160.0,0.76885275]
[1755070843940,0.95633486,119170.0,119160.0,0.76885275]
[1755070844745,0.90780085,119170.0,119160.0,0.76885275]
[1755070844958,0.90780085,119170.0,119160.0,0.96885275]
[1755070845368,0.93229281,119170.0,119160.0,0.96885275]
[1755070845541,0.90780085,119170.0,119160.0,0.96885275]
[1755070845710,0.93229281,119170.0,119160.0,0.96885275]
[1755070846322,0.90780085,119170.0,119160.0,0.96885275]
[1755070846546,0.90780085,119170.0,119160.0,0.96678275]
[1755070846949,0.93229281,119170.0,119160.0,0.96367275]
[1755070849105,0.90780085,119170.0,119160.0,0.96367275]
[1755070849306,0.12832827,119170.0,119160.0,0.96367275]
[1755070849515,0.90780085,119170.0,119160.0,0.96367275]
[1755070850123,0.90480085,119170.0,119160.0,0.96367275]
[1755070850448,0.90480085,119170.0,119160.0,0.96467275]
[1755070850623,0.90480085,119170.0,119160.0,0.76359275]
[1755070851052,0.90677085,119170.0,119160.0,0.76566275]
[1755070852106,0.90677085,119170.0,119160.0,0.76877275]
[1755070854705,0.10787925,119170.0,119160.0,0.76877275]
[1755070854912,0.10787925,119170.0,119160.0,0.79910275]
[1755070855553,0.10787925,119170.0,119160.0,1.10478275]
[1755070860596,0.025156,119170.0,119160.0,0.79910275]
[1755070860805,0.025156,119170.0,119160.0,1.13477275]
[1755070865509,0.025156,119170.0,119160.0,1.44041275]
[1755070867125,0.80462858,119170.0,119160.0,1.44041275]
[1755070871620,0.80462858,119170.0,119160.0,1.33585275]
[1755070873664,0.80462858,119170.0,119160.0,1.13477275]
[1755070874315,0.025156,119170.0,119160.0,1.13477275]
[1755070874554,0.80462858,119170.0,119160.0,1.13477275]
[1755070874758,0.7263106,119170.0,119160.0,1.13477275]
[1755070875643,0.7263106,119170.0,119160.0,1.44041275]
[1755070877946,0.7263106,119170.0,119160.0,1.33585275]
[1755070879902,0.7263106,119170.0,119160.0,1.13477275]
[1755070884915,0.025156,119170.0,119160.0,1.13477275]
[1755070885241,0.7263106,119170.0,119160.0,1.13477275]
[1755070885475,0.025156,119170.0,119160.0,1.13477275]
[1755070885624,0.7263106,119170.0,119160.0,1.44041275]
[1755070888677,0.7263106,119170.0,119160.0,1.33585275]
[1755070890412,0.025156,119170.0,119160.0,1.33585275]
[1755070890631,0.7263106,119170.0,119160.0,1.33585275]
[1755070893122,0.025156,119170.0,119160.0,1.33585275]
[1755070893362,0.7263106,119170.0,119160.0,1.33585275]
[1755070894326,0.7263106,119170.0,119160.0,1.13477275]
[1755070894770,0.025156,119170.0,119160.0,1.1357307]
[1755070895649,0.025156,119170.0,119160.0,1.4413707]
[1755070895841,0.025156,119170.0,119160.0,1.4403707]
[1755070896216,0.7273106,119170.0,119160.0,1.4443707]
[1755070896792,0.7323906,119170.0,119160.0,1.4109307]
[1755070896981,0.7323906,119170.0,119160.0,1.4129307]
[1755070898055,0.031236,119170.0,119160.0,1.4129307]
[1755070898268,0.031236,119170.0,119160.0,1.20990275]
[1755070898269,0.7323906,119170.0,119160.0,1.20990275]
[1755070898507,0.7323906,119170.0,119160.0,1.10534275]
[1755070898720,0.7323906,119170.0,119160.0,0.97758275]
[1755070898721,1.53371747,119170.0,119160.0,0.97758275]
[1755070898940,1.53371747,119170.0,119160.0,1.10526275]
[1755070899363,1.54939465,119170.0,119160.0,1.10526275]
[1755070900002,1.54839465,119170.0,119160.0,1.09926275]
[1755070900633,0.14606656,119170.0,119160.0,1.09926275]
[1755070900837,0.92543141,119170.0,119160.0,1.09926275]
[1755070902171,0.92543141,119170.0,119160.0,1.29926275]
[1755070903094,0.92542205,119170.0,119160.0,1.29926275]
[1755070904990,0.92542205,119170.0,119160.0,1.09818275]
[1755070905434,0.90977312,119170.0,119160.0,1.09818275]
[1755070905646,0.90977312,119170.0,119160.0,1.40382275]
[1755070908980,0.90977312,119170.0,119160.0,1.29926275]
[1755070913883,0.90977312,119170.0,119160.0,1.09818275]
[1755070915737,0.90977312,119170.0,119160.0,1.40597275]
[1755070917435,0.90977312,119170.0,119160.0,1.40386275]
[1755070920800,1.53347777,119170.0,119160.0,1.40386275]
[1755070922824,0.90994242,119170.0,119160.0,1.40386275]
[1755070927636,0.13040827,119170.0,119160.0,1.40386275]
[1755070927856,0.13040827,119170.0,119160.0,1.40897275]
[1755070927857,0.91217517,119170.0,119160.0,1.40897275]
[1755070928050,0.90693242,119170.0,119160.0,1.40897275]
[1755070928262,0.90693242,119170.0,119160.0,1.40593275]
[1755070928469,0.90693242,119170.0,119160.0,1.40897275]
[1755070929146,0.90693242,119170.0,119160.0,1.30441275]
[1755070929576,0.90693242,119170.0,119160.0,1.10329275]
[1755070935671,0.90693242,119170.0,119160.0,1.40897275]
[1755070936113,0.90693242,119170.0,119160.0,1.40593275]
[1755070937192,0.90693242,119170.0,119160.0,1.30137275]
[1755070937409,0.12532827,119170.0,119160.0,1.30441275]
[1755070937674,0.90486242,119170.0,119160.0,1.30441275]
[1755070938332,0.90486242,119170.0,119160.0,1.10329275]
[1755070939947,0.12532827,119170.0,119160.0,1.10329275]
[1755070940146,0.90486242,119170.0,119160.0,1.10329275]
[1755070942860,1.52806457,119170.0,119160.0,1.10329275]
[1755070943865,1.50654688,119170.0,119160.0,1.10329275]
[1755070945714,1.50654688,119170.0,119160.0,1.40897275]
[1755070945900,0.80517873,119170.0,119160.0,1.40897275]
[1755070946460,0.10381058,119170.0,119160.0,1.40897275]
[1755070946671,0.80517873,119170.0,119160.0,1.40897275]
[1755070946861,0.10381058,119170.0,119160.0,1.40897275]
[1755070947060,0.80517873,119170.0,119160.0,1.30441275]
[1755070947268,0.10381058,119170.0,119160.0,1.30441275]
[1755070947461,0.80517873,119170.0,119160.0,1.30441275]
[1755070949378,0.80517873,119170.0,119160.0,1.10329275]
[1755070955630,0.80517873,119170.0,119160.0,1.40893275]
[1755070956626,0.82998331,119170.0,119160.0,1.40893275]
[1755070960102,0.83213331,119170.0,119160.0,1.40589275]
[1755070960522,0.83213331,119170.0,119160.0,1.30133275]
[1755070961204,0.83213331,119170.0,119160.0,1.10323275]
[1755070961969,0.82998331,119170.0,119160.0,1.10323275]
[1755070965565,0.12961516,119170.0,119160.0,1.10623275]
[1755070965750,0.83098331,119170.0,119160.0,1.41187275]
[1755070966379,0.83098331,119170.0,119160.0,1.41287275]
[1755070966674,0.82998331,119170.0,119160.0,1.40987275]
[1755070966967,0.11116614,119170.0,119160.0,1.40887275]
[1755070967174,0.00463831,119170.0,119160.0,1.44658874]
[1755070967352,0.70236815,119170.0,119160.0,1.44658874]
[1755070970220,0.70236815,119170.0,119160.0,1.34202874]
[1755070972355,0.70236815,119170.0,119160.0,1.14094874]
[1755070973239,0.71981717,119170.0,119160.0,1.14094874]
[1755070975634,0.71981717,119170.0,119160.0,1.44658874]
[1755070978330,0.01844902,119170.0,119160.0,1.44658874]
[1755070978480,0.71981717,119170.0,119160.0,1.44658874]
[1755070978680,0.01844902,119170.0,119160.0,1.44658874]
[1755070978904,0.71981717,119170.0,119160.0,1.44658874]
[1755070980570,0.01844902,119170.0,119160.0,1.44658874]
[1755070980823,0.71981717,119170.0,119160.0,1.44658874]
[1755070981526,0.71981717,119170.0,119160.0,1.14094874]
[1755070981732,0.01844902,119170.0,119160.0,1.14094874]
[1755070981952,0.71981717,119170.0,119160.0,1.14094874]
[1755070982256,0.70236815,119170.0,119160.0,1.14094874]
[1755070982512,0.001,119170.0,119160.0,1.29094874]
[1755070983289,0.70236815,119170.0,119160.0,1.29094874]
[1755070983493,0.001,119170.0,119160.0,1.29094874]
[1755070983733,0.70236815,119170.0,119160.0,1.29094874]
[1755070984058,0.001,119170.0,119160.0,1.29094874]
[1755070985425,0.70236815,119170.0,119160.0,1.29094874]
[1755070985648,0.70236815,119170.0,119160.0,1.59658874]
[1755070986487,0.001,119170.0,119160.0,1.59658874]
[1755070986707,0.70236815,119170.0,119160.0,1.59658874]
[1755070987348,0.70236815,119170.0,119160.0,1.49202874]
[1755070989325,0.001,119170.0,119160.0,1.49202874]
[1755070989580,0.70236815,119170.0,119160.0,1.49202874]
[1755070990279,0.70236815,119170.0,119160.0,1.29094874]
[1755070995639,0.70236815,119170.0,119160.0,1.59650874]
[1755070998031,0.70236815,119170.0,119160.0,1.49198874]
[1755070999404,0.70434815,119170.0,119160.0,1.45973874]
[1755070999589,0.70434815,119170.0,119160.0,1.45675874]
[1755071000254,0.70434815,119170.0,119160.0,1.45972874]
[1755071001719,0.70434815,119170.0,119160.0,1.4592207]
[1755071001927,0.70434815,119170.0,119160.0,1.45972874]
[1755071002135,0.70434815,119170.0,119160.0,1.2531407]
[1755071002313,0.70741815,119170.0,119160.0,1.25364874]
[1755071005540,0.70741815,119170.0,119160.0,1.25569874]
[1755071005758,0.70741815,119170.0,119160.0,1.56125874]
[1755071008313,0.70741815,119170.0,119160.0,1.55920874]
[1755071008742,1.42623532,119170.0,119160.0,1.45468874]
[1755071008975,1.45138532,119170.0,119160.0,1.30322275]
[1755071009410,1.45138532,119170.0,119160.0,1.30373079]
[1755071009630,1.45138532,119170.0,119160.0,1.10269079]
[1755071009860,0.75001717,119170.0,119160.0,1.10269079]
[1755071013143,0.04864902,119170.0,119160.0,1.10269079]
[1755071013385,0.75001717,119170.0,119160.0,1.10269079]
[1755071015652,0.75001717,119170.0,119160.0,1.40829079]
[1755071021236,0.75001717,119170.0,119160.0,1.10269079]
[1755071025592,0.75001717,119170.0,119160.0,1.40833079]
[1755071025970,0.04864902,119170.0,119160.0,1.40833079]
[1755071026204,0.75001717,119170.0,119160.0,1.40833079]
[1755071027589,0.04864902,119170.0,119160.0,1.40833079]
[1755071027848,0.04864902,119170.0,119160.0,1.41029079]
[1755071028090,0.75001717,119170.0,119160.0,1.41029079]
[1755071030261,0.74694717,119170.0,119160.0,1.41029079]
[1755071032618,0.74694717,119170.0,119160.0,1.41323079]
[1755071032835,0.04359902,119170.0,119160.0,1.10759079]
[1755071033044,0.74496717,119170.0,119160.0,1.10854874]
[1755071033276,0.71981717,119170.0,119160.0,1.10854874]
[1755071034996,0.001,119170.0,119160.0,1.13729874]
[1755071035471,0.70236815,119170.0,119160.0,1.13729874]
[1755071035700,0.70236815,119170.0,119160.0,1.44293874]
[1755071035882,0.70136815,119170.0,119160.0,1.43893874]
[1755071036314,0.74396617,119180.0,119170.0,0.00050804]
[1755071036515,0.74396617,119180.0,119170.0,0.85890014]
[1755071036730,0.74396617,119180.0,119170.0,0.86184014]
[1755071037717,0.74396617,119180.0,119170.0,0.86279809]
[1755071038000,0.74396617,119180.0,119170.0,0.86379809]
[1755071043585,0.74605617,119180.0,119170.0,0.86379809]
[1755071045655,0.74605617,119180.0,119170.0,1.16939809]
[1755071048946,0.74605617,119180.0,119170.0,1.06483809]
[1755071050735,0.74396617,119180.0,119170.0,1.06483809]
[1755071050916,0.74396617,119180.0,119170.0,0.86379809]
[1755071055752,0.74396617,119180.0,119170.0,1.16939809]
[1755071058225,0.72651715,119180.0,119170.0,1.06483809]
[1755071059091,0.70136815,119180.0,119170.0,1.06483809]
[1755071059588,0.77340987,119190.0,119180.0,0.53534079]
[1755071059848,0.77549987,119190.0,119180.0,1.10046079]
[1755071061237,0.07413172,119190.0,119180.0,1.10046079]
[1755071061461,0.77549987,119190.0,119180.0,1.10046079]
[1755071062511,0.77549987,119190.0,119180.0,1.10146079]
[1755071063154,0.77549987,119190.0,119180.0,1.10540874]
[1755071065066,0.07413172,119190.0,119180.0,1.10540874]
[1755071065279,0.77340987,119190.0,119180.0,1.10540874]
[1755071065590,0.77340987,119190.0,119180.0,1.41096874]
[1755071070023,0.77537987,119190.0,119180.0,1.41096874]
[1755071070633,0.77340987,119190.0,119180.0,1.41096874]
[1755071070839,0.74826387,119190.0,119180.0,1.30644874]
[1755071071273,0.75023387,119190.0,119180.0,1.30644874]
[1755071071722,0.04886572,119190.0,119180.0,1.30345874]
[1755071071941,0.75023387,119190.0,119180.0,1.30658874]
[1755071075552,0.75023387,119190.0,119180.0,1.41110874]
[1755071076416,0.04886572,119190.0,119180.0,1.41110874]
[1755071076881,0.75023387,119190.0,119180.0,1.41110874]
[1755071080774,0.75023387,119190.0,119180.0,1.30658874]
[1755071082201,0.74826387,119190.0,119180.0,1.30658874]
[1755071083127,0.75023387,119190.0,119180.0,1.30658874]
[1755071085504,0.75023387,119190.0,119180.0,1.10241874]
[1755071085725,0.75023387,119190.0,119180.0,1.40797874]
[1755071086425,1.47674702,119190.0,119180.0,1.40797874]
[1755071086771,0.07401072,119190.0,119180.0,1.40797874]
[1755071086976,0.77537887,119190.0,119180.0,1.40797874]
[1755071087392,0.77537887,119190.0,119180.0,1.41110874]
[1755071089325,1.47674702,119190.0,119180.0,1.40797874]
[1755071089537,0.07401072,119190.0,119180.0,1.40797874]
[1755071089744,0.77537887,119190.0,119180.0,1.40797874]
[1755071090770,0.77833887,119190.0,119180.0,1.40600874]
[1755071091231,1.47970702,119190.0,119180.0,1.40600874]
[1755071091618,1.47970702,119190.0,119180.0,0.77301079]
[1755071091832,1.56243027,119190.0,119180.0,1.09994275]
[1755071092056,1.56243027,119190.0,119180.0,0.89890275]
[1755071092301,1.56243027,119190.0,119180.0,0.89941079]
[1755071092507,1.56243027,119190.0,119180.0,0.69941079]
[1755071092751,1.56243027,119190.0,119180.0,0.89941079]
[1755071092964,1.56243027,119190.0,119180.0,0.69890275]
[1755071093173,1.56243027,119190.0,119180.0,0.89890275]
[1755071093390,2.26379842,119190.0,119180.0,0.89890275]
[1755071093637,2.26379842,119190.0,119180.0,0.77146275]
[1755071093856,1.56243027,119190.0,119180.0,0.89890275]
[1755071094493,1.56243027,119190.0,119180.0,0.89941079]
[1755071095072,1.56243027,119190.0,119180.0,0.89890275]
[1755071095295,1.56243027,119190.0,119180.0,0.89941079]
[1755071095556,1.56243027,119190.0,119180.0,1.20446275]
[1755071096529,1.56243027,119190.0,119180.0,1.20497079]
[1755071096973,1.56243027,119190.0,119180.0,1.20446275]
[1755071097183,1.56243027,119190.0,119180.0,1.20497079]
[1755071100516,1.56243027,119190.0,119180.0,1.20446275]
[1755071100742,2.27943758,119190.0,119180.0,0.89994275]
[1755071101166,2.27943758,119190.0,119180.0,1.09994275]
[1755071101379,2.27943758,119190.0,119180.0,0.89994275]
[1755071102715,2.27943758,119190.0,119180.0,0.77250275]
[1755071102922,2.27943758,119190.0,119180.0,0.89994275]
[1755071104290,2.27943758,119190.0,119180.0,0.89894275]
[1755071104665,2.28143758,119190.0,119180.0,0.89894275]
[1755071104891,2.28243758,119190.0,119180.0,0.89894275]
[1755071105750,2.28243758,119190.0,119180.0,1.00350275]
[1755071106251,2.26679842,119190.0,119180.0,1.00350275]
[1755071106950,2.28242542,119190.0,119180.0,1.00350275]
[1755071107347,2.28242522,119190.0,119180.0,1.00350275]
[1755071109917,2.26679842,119190.0,119180.0,1.00350275]
[1755071110950,0.16269397,119190.0,119180.0,1.00350275]
[1755071111158,1.57067302,119190.0,119180.0,1.00350275]
[1755071111391,1.56543027,119190.0,119180.0,1.00350275]
[1755071113497,1.58105849,119190.0,119180.0,1.00350275]
[1755071113712,0.17832219,119190.0,119180.0,1.00350275]
[1755071114122,1.58105849,119190.0,119180.0,1.00350275]
[1755071116128,2.28242664,119190.0,119180.0,1.00350275]
[1755071119622,1.56543027,119190.0,119180.0,1.00350275]
[1755071119821,1.58107507,119190.0,119180.0,1.00350275]
[1755071120240,1.5810814,119190.0,119180.0,1.00350275]
[1755071120459,2.28244955,119190.0,119180.0,1.00350275]
[1755071122032,0.1783451,119190.0,119180.0,1.00350275]
[1755071122240,2.28245873,119190.0,119180.0,1.00350275]
[1755071122810,1.58109058,119190.0,119180.0,1.00350275]
[1755071125133,0.17835428,119190.0,119180.0,1.00350275]
[1755071125316,1.58109058,119190.0,119180.0,1.00350275]
[1755071128520,0.17835428,119190.0,119180.0,1.00350275]
[1755071128723,1.58109058,119190.0,119180.0,1.00350275]
[1755071128928,1.56543027,119190.0,119180.0,1.00555275]
[1755071129169,1.58109777,119190.0,119180.0,1.00555275]
[1755071129561,1.57813777,119190.0,119180.0,1.00555275]
[1755071134947,0.17540147,119190.0,119180.0,1.00555275]
[1755071135131,1.57813777,119190.0,119180.0,1.00555275]
[1755071137260,1.58120777,119190.0,119180.0,1.00555275]
[1755071137446,1.58120777,119190.0,119180.0,1.00350275]
[1755071137760,1.63151777,119190.0,119180.0,1.00350275]
[1755071137879,1.58120777,119190.0,119180.0,1.00350275]
[1755071138296,1.58121163,119190.0,119180.0,1.00350275]
[1755071138830,1.58121159,119190.0,119180.0,1.00350275]
[1755071147354,1.56554027,119190.0,119180.0,1.00350275]
[1755071147764,1.58121229,119190.0,119180.0,1.00350275]
[1755071148165,1.61585027,119190.0,119180.0,1.00350275]
[1755071148374,1.58121233,119190.0,119180.0,1.00350275]
[1755071149162,1.58121233,119190.0,119180.0,1.00557275]
[1755071149891,1.58121213,119190.0,119180.0,1.00557275]
[1755071150969,1.55606533,119190.0,119180.0,1.00557275]
[1755071153282,1.58105925,119190.0,119180.0,1.00557275]
[1755071156691,1.56538739,119190.0,119180.0,1.00557275]
[1755071156922,1.58105588,119190.0,119180.0,1.00557275]
[1755071157428,1.58105566,119190.0,119180.0,1.00557275]
[1755071161401,1.58105449,119190.0,119180.0,1.00557275]
[1755071162047,1.58105432,119190.0,119180.0,1.00557275]
[1755071162945,1.57798432,119190.0,119180.0,1.00557275]
[1755071163885,1.57798432,119190.0,119180.0,1.00855275]
[1755071165043,1.56231739,119190.0,119180.0,1.00855275]
[1755071165250,1.57601448,119190.0,119180.0,1.00855275]
[1755071165459,1.57601448,119190.0,119180.0,0.88111275]
[1755071165671,1.57601448,119190.0,119180.0,1.00855275]
[1755071168031,0.17327818,119190.0,119180.0,1.00855275]
[1755071168231,1.57601448,119190.0,119180.0,1.00855275]
[1755071171025,1.55102056,119190.0,119180.0,1.00855275]